bitfinex-derivatives/quotes_SOLF0:USTF0_20250215
["timestamp","ask_amount","ask_price","bid_price","bid_amount"]
[1739632519574,9.19106639,194.2,194.16,6.83550798]
[1739632519873,9.19106639,194.2,194.16,1.68600798]
[1739632520073,14.33976639,194.2,194.16,0.03350798]
[1739632520470,9.19106639,194.2,194.16,0.03350798]
[1739632520672,5.1488,194.19,194.16,0.03350798]
[1739632520973,9.15370151,194.18,194.16,0.03350798]
[1739632521676,14.30280151,194.18,194.16,0.03350798]
[1739632524274,9.15370151,194.18,194.16,0.03350798]
[1739632527077,14.30290151,194.18,194.16,0.03350798]
[1739632527375,9.15370151,194.18,194.16,0.03350798]
[1739632527675,5.1493,194.17,194.16,0.03350798]
[1739632529571,5.1501,194.14,194.07,9.15370151]
[1739632529774,14.30380151,194.14,194.07,9.15370151]
[1739632530669,0.03811284,194.12,194.09,0.03920644]
[1739632531576,14.34251435,194.12,194.09,0.03920644]
[1739632532578,9.19181435,194.12,194.09,0.03920644]
[1739632533175,14.34271435,194.12,194.09,0.03920644]
[1739632536479,9.19181435,194.12,194.09,0.03920644]
[1739632537386,14.34261435,194.12,194.09,0.03920644]
[1739632541182,9.19181435,194.12,194.09,5.19060644]
[1739632541388,0.03811284,194.12,194.09,5.19060644]
[1739632542385,0.03811284,194.12,194.09,0.03920644]
[1739632543187,0.03811284,194.12,194.09,5.19060644]
[1739632544090,0.03811284,194.12,194.1,5.1511]
[1739632544889,0.03811284,194.12,194.09,9.19290795]
[1739632545093,0.03811284,194.12,194.1,5.1511]
[1739632545587,191.0,194.17,194.14,5.1501]
[1739632545788,9.15370151,194.2,194.14,5.1501]
[1739632546490,14.30220151,194.2,194.14,5.1501]
[1739632546795,0.03259796,194.19,194.15,0.03466645]
[1739632547490,9.15370151,194.18,194.15,0.03466645]
[1739632547690,9.15370151,194.16,194.15,0.03466645]
[1739632548287,14.30330151,194.16,194.15,0.03466645]
[1739632548492,9.15370151,194.16,194.07,9.15370151]
[1739632548688,9.15370151,194.12,194.07,9.15370151]
[1739632549601,0.03329627,194.11,194.08,0.03603639]
[1739632551697,0.03329627,194.11,194.09,9.15370151]
[1739632553603,0.03329627,194.11,194.09,14.30510151]
[1739632555106,0.03329627,194.11,194.08,0.03603639]
[1739632555314,9.15370151,194.1,194.08,0.03603639]
[1739632555711,5.1514,194.09,194.08,0.03603639]
[1739632559212,9.15370151,194.1,193.98,9.15370151]
[1739632559412,9.15370151,194.04,193.98,9.15370151]
[1739632560410,0.03529384,194.03,193.99,0.03748975]
[1739632560809,0.03529384,194.03,193.99,5.19148975]
[1739632561112,0.03529384,194.03,193.99,0.03748975]
[1739632562312,5.18839384,194.03,193.99,0.03748975]
[1739632563014,0.03529384,194.03,193.99,0.03748975]
[1739632563314,0.03529384,194.03,193.99,5.19158975]
[1739632563513,0.03529384,194.03,193.99,0.03748975]
[1739632563717,5.18839384,194.03,193.99,0.03748975]
[1739632564010,0.03529384,194.03,193.99,0.03748975]
[1739632564209,5.18839384,194.03,193.99,0.03748975]
[1739632564409,0.03529384,194.03,193.99,0.03748975]
[1739632564814,5.1533,194.02,193.99,0.03748975]
[1739632566108,5.18839384,194.03,193.99,0.03748975]
[1739632566310,0.03529384,194.03,193.99,0.03748975]
[1739632566519,0.03529384,194.03,194.0,9.15370151]
[1739632566719,0.03529384,194.03,194.02,5.1533]
[1739632567012,0.03529384,194.03,193.99,0.03748975]
[1739632567518,0.03529384,194.03,194.01,5.1535]
[1739632568315,0.03529384,194.03,194.0,14.30750151]
[1739632568512,0.03529384,194.03,194.0,9.15370151]
[1739632569210,0.03529384,194.03,194.01,5.1535]
[1739632570211,0.03529384,194.03,194.0,14.30750151]
[1739632570413,0.03529384,194.03,194.0,5.1538]
[1739632571313,0.03529384,194.03,194.01,5.1533]
[1739632571811,0.03529384,194.03,193.99,0.03748975]
[1739632573216,0.03529384,194.03,194.0,5.1536]
[1739632573811,0.03529384,194.03,193.99,0.03748975]
[1739632574915,0.03529384,194.03,193.99,5.19128975]
[1739632575919,5.18829384,194.03,193.99,5.19128975]
[1739632576314,0.03529384,194.03,193.99,0.03748975]
[1739632577619,0.03529384,194.03,194.0,5.1538]
[1739632577920,5.1534,194.02,193.99,0.03748975]
[1739632578219,9.15370151,194.02,193.99,5.19148975]
[1739632586627,9.15370151,194.02,194.01,5.1536]
[1739632586926,9.15370151,194.02,193.99,0.03748975]
[1739632587824,9.15370151,194.02,193.99,5.19148975]
[1739632588524,9.15370151,194.0,193.99,0.03748975]
[1739632589521,9.15370151,194.02,193.99,0.03748975]
[1739632590218,9.15370151,194.02,194.01,5.1536]
[1739632591725,9.15370151,194.02,194.0,5.1537]
[1739632592226,9.15370151,194.02,193.99,0.03748975]
[1739632592429,14.30700151,194.02,193.99,0.03748975]
[1739632593022,14.30750151,194.0,193.99,0.03748975]
[1739632593524,9.15370151,194.0,193.99,0.03748975]
[1739632594432,9.15370151,194.0,193.91,1.6763]
[1739632594728,9.15370151,193.96,193.91,1.6763]
[1739632595525,0.03678677,193.95,193.92,0.03886214]
[1739632597027,0.03678677,193.95,193.94,5.1554]
[1739632606543,0.03678677,193.95,193.93,5.1556]
[1739632606947,0.03678677,193.95,193.94,5.1554]
[1739632608347,0.03678677,193.95,193.92,0.03886214]
[1739632608546,9.15370151,193.93,193.92,0.03886214]
[1739632608745,14.30940151,193.93,193.92,0.03886214]
[1739632610142,9.15370151,193.93,193.86,5.1575]
[1739632610346,9.15370151,193.89,193.86,5.1575]
[1739632610743,9.15370151,193.89,193.82,9.15370151]
[1739632611242,0.0387701,193.87,193.82,9.15370151]
[1739632611549,0.0387701,193.87,193.86,5.1575]
[1739632612341,9.15370151,193.93,193.86,9.15370151]
[1739632612947,9.15370151,193.93,193.91,5.156]
[1739632613650,9.15370151,193.93,193.9,0.0366196]
[1739632614354,9.15370151,193.93,193.91,5.156]
[1739632614652,0.03842724,193.94,193.9,0.0366196]
[1739632615049,0.03842724,193.94,193.93,5.1557]
[1739632631856,0.03842724,193.94,193.92,9.15370151]
[1739632631857,9.15370151,194.01,193.99,5.154]
[1739632632264,9.15370151,194.01,193.98,5.1543]
[1739632632864,9.15370151,194.01,193.95,9.15370151]
[1739632633164,9.18755127,194.01,193.98,0.03850602]
[1739632634059,9.18755127,194.01,193.99,5.154]
[1739632635564,9.18755127,194.01,193.98,0.03850602]
[1739632635761,9.18755127,194.01,193.98,5.19280602]
[1739632638666,9.18755127,194.01,193.98,0.03850602]
[1739632638865,9.18755127,194.01,193.99,5.154]
[1739632640768,9.18755127,194.01,193.98,5.19280602]
[1739632643071,9.18755127,194.01,193.99,5.1541]
[1739632645872,0.03384976,194.01,193.99,5.1541]
[1739632646371,0.03384976,194.01,193.98,0.03850602]
[1739632647073,0.03384976,194.01,194.0,5.1538]
[1739632649174,0.03384976,194.01,193.99,5.154]
[1739632649571,9.18755127,194.01,193.98,0.03850602]
[1739632650674,14.34115127,194.01,193.98,0.03850602]
[1739632651173,14.30780151,193.99,193.98,0.03850602]
[1739632652072,9.15370151,193.99,193.89,5.1567]
[1739632652271,206.47,194.05,193.87,7.15944237]
[1739632652272,9.15370151,193.9,193.87,7.15944237]
[1739632653075,9.15370151,193.9,193.87,5.1571]
[1739632653275,9.19015445,193.9,193.87,5.19380086]
[1739632654871,14.34675445,193.9,193.87,0.03670086]
[1739632655076,9.15370151,193.88,193.87,0.03670086]
[1739632656075,14.31070151,193.88,193.87,0.03670086]
[1739632658679,14.31070151,193.88,193.7,28.57069041]
[1739632658680,9.15370151,193.81,193.75,9.15370151]
[1739632658972,9.15370151,193.83,193.77,9.15370151]
[1739632659371,9.15370151,193.83,193.75,9.15370151]
[1739632659674,0.03408178,193.81,193.75,9.15370151]
[1739632660772,0.03408178,193.81,193.8,5.1591]
[1739632662178,0.03408178,193.81,193.78,5.1594]
[1739632662378,0.03408178,193.81,193.75,9.15370151]
[1739632663478,0.03408178,193.81,193.77,9.15370151]
[1739632664577,0.03408178,193.81,193.8,5.1591]
[1739632680703,14.31100151,193.87,193.79,9.15370151]
[1739632680904,9.15370151,193.87,193.84,5.1581]
[1739632682003,9.19219685,193.87,193.84,5.19151856]
[1739632684015,0.03849534,193.87,193.86,5.1575]
[1739632690512,9.15370151,193.91,193.89,5.1565]
[1739632690918,9.15370151,193.93,193.87,9.15370151]
[1739632691221,9.15370151,193.95,193.89,9.15370151]
[1739632691617,0.03863086,193.94,193.9,0.0386462]
[1739632692317,0.03863086,193.94,193.92,5.1557]
[1739632693219,0.03863086,193.94,193.9,0.0386462]
[1739632694023,0.03863086,193.94,193.91,5.156]
[1739632694222,0.03863086,193.94,193.9,0.0386462]
[1739632694718,0.03863086,193.94,193.9,5.1949462]
[1739632695024,0.03863086,193.94,193.9,0.0386462]
[1739632695524,0.03863086,193.94,193.92,5.1559]
[1739632696114,0.03863086,193.94,193.91,5.1562]
[1739632698021,0.03863086,193.94,193.9,0.0386462]
[1739632698226,0.03863086,193.94,193.9,5.1950462]
[1739632700124,14.30950151,193.93,193.9,0.0386462]
[1739632700324,9.15370151,193.91,193.9,0.0386462]
[1739632701629,14.30990151,193.91,193.9,0.0386462]
[1739632704432,5.1578,193.85,193.77,9.15370151]
[1739632704629,9.15370151,193.83,193.77,9.15370151]
[1739632705026,9.15370151,193.85,193.79,9.15370151]
[1739632705722,0.03747341,193.84,193.8,0.03771191]
[1739632707122,0.03747341,193.84,193.82,5.1586]
[1739632707326,0.03747341,193.84,193.8,0.03771191]
[1739632707526,0.03747341,193.84,193.81,9.15370151]
[1739632707727,0.03747341,193.84,193.83,5.1583]
[1739632708428,9.15370151,193.89,193.87,5.1573]
[1739632708627,9.15370151,193.91,193.85,9.15370151]
[1739632708828,9.15370151,193.91,193.81,3.2757]
[1739632708829,12.36010151,193.93,193.87,9.15370151]
[1739632709232,12.36010151,193.93,193.85,9.15370151]
[1739632709435,14.30990151,193.91,193.85,9.15370151]
[1739632709732,9.18981883,193.91,193.87,0.03577602]
[1739632711533,9.18981883,193.91,193.87,5.19287602]
[1739632713434,14.34611883,193.91,193.87,0.03577602]
[1739632713637,9.18981883,193.91,193.87,0.03577602]
[1739632715139,9.18981883,193.91,193.87,5.19297602]
[1739632716636,0.03611732,193.91,193.87,9.18947753]
[1739632718038,0.03611732,193.91,193.9,5.1565]
[1739632718743,0.03611732,193.91,193.87,9.18947753]
[1739632718943,0.03611732,193.91,193.88,5.157]
[1739632721242,0.03611732,193.91,193.9,5.1565]
[1739632733759,0.03611732,193.91,193.89,14.31040151]
[1739632734864,0.03611732,193.91,193.9,5.1565]
[1739632735567,0.03611732,193.91,193.89,14.31040151]
[1739632735962,0.03611732,193.91,193.89,9.15370151]
[1739632736171,0.03611732,193.91,193.9,5.1565]
[1739632740768,0.03611732,193.91,193.89,9.15370151]
[1739632740969,0.03611732,193.91,193.89,14.31020151]
[1739632742065,0.03611732,193.91,193.88,6.7214]
[1739632742369,0.03611732,193.91,193.88,5.157]
[1739632743670,0.03611732,193.91,193.89,5.1567]
[1739632743870,0.03611732,193.91,193.87,9.18947753]
[1739632744571,0.03611732,193.91,193.9,5.1565]
[1739632757880,0.03611732,193.91,193.88,5.1568]
[1739632758777,9.18981883,193.91,193.87,5.19297602]
[1739632758980,9.18981883,193.91,193.87,0.03577602]
[1739632759282,9.15370151,193.89,193.87,0.03577602]
[1739632759481,5.157,193.88,193.87,0.03577602]
[1739632759780,9.18981883,193.91,193.87,0.03577602]
[1739632762081,14.34621883,193.91,193.87,0.03577602]
[1739632762579,9.18981883,193.91,193.87,0.03577602]
[1739632763782,0.03611732,193.91,193.89,9.15370151]
[1739632763983,0.03611732,193.91,193.89,14.31020151]
[1739632764689,0.03611732,193.91,193.89,9.15370151]
[1739632764884,0.03611732,193.91,193.88,5.157]
[1739632765978,0.03611732,193.91,193.89,5.1567]
[1739632766284,0.03611732,193.91,193.89,14.31040151]
[1739632766782,0.03611732,193.91,193.9,5.1565]
[1739632774888,0.03611732,193.91,193.89,9.15370151]
[1739632775393,5.1567,193.9,193.87,9.18947753]
[1739632776090,0.03611732,193.91,193.87,9.18947753]
[1739632776793,0.03611732,193.91,193.87,0.03577602]
[1739632776794,9.18981883,193.91,193.87,0.03577602]
[1739632777293,9.18981883,193.91,193.87,9.18947753]
[1739632777294,0.03611732,193.91,193.87,9.18947753]
[1739632779195,0.03611732,193.91,193.89,9.15370151]
[1739632779785,0.03611732,193.91,193.9,5.1565]
[1739632779987,5.1546,193.98,193.89,9.15370151]
[1739632780190,5.1546,193.98,193.93,9.15370151]
[1739632780690,12.29830151,193.99,193.93,14.30940151]
[1739632780891,5.1547,193.97,193.93,9.15370151]
[1739632781296,5.1549,193.96,193.93,9.19296299]
[1739632781497,0.0385334,193.97,193.93,9.19296299]
[1739632782497,5.1549,193.96,193.93,9.19296299]
[1739632784299,0.0385334,193.97,193.93,9.19296299]
[1739632784800,5.1552,193.95,193.93,9.19296299]
[1739632785703,5.1549,193.96,193.93,9.19296299]
[1739632786802,0.0385334,193.97,193.93,9.19296299]
[1739632787000,5.1932334,193.97,193.93,14.34856299]
[1739632787207,0.0385334,193.97,193.93,14.34856299]
[1739632787501,0.0385334,193.97,193.93,9.19296299]
[1739632788007,0.0385334,193.97,193.95,9.15370151]
[1739632789601,5.1932334,193.97,193.95,9.15370151]
[1739632793107,5.1549,193.96,193.95,9.15370151]
[1739632795607,5.1931334,193.97,193.95,9.15370151]
[1739632796210,5.1549,193.96,193.95,9.15370151]
[1739632798012,5.1932334,193.97,193.95,9.15370151]
[1739632798211,0.0385334,193.97,193.95,9.15370151]
[1739632799409,5.1549,193.96,193.95,9.15370151]
[1739632799906,5.1554,193.95,193.93,9.19296299]
[1739632800511,0.0385334,193.97,193.93,9.19296299]
[1739632800713,5.1554,193.94,193.93,9.19296299]
[1739632801417,5.1549,193.96,193.93,9.19296299]
[1739632801610,5.1549,193.96,193.95,9.15370151]
[1739632803615,0.0385334,193.97,193.93,9.19296299]
[1739632804818,5.1553,193.95,193.93,9.19296299]
[1739632806627,0.0385334,193.97,193.93,9.19296299]
[1739632806929,0.0385334,193.97,193.95,9.15370151]
[1739632808117,5.1932334,193.97,193.95,9.15370151]
[1739632808722,0.0385334,193.97,193.95,9.15370151]
[1739632810129,5.1932334,193.97,193.95,9.15370151]
[1739632812224,5.1554,193.94,193.93,0.03926148]
[1739632813528,5.1552,193.95,193.93,0.03926148]
[1739632816932,5.1932334,193.97,193.93,0.03926148]
[1739632817134,0.0385334,193.97,193.94,9.15370151]
[1739632819932,0.0385334,193.97,193.93,0.03926148]
[1739632820335,5.1551,193.96,193.93,0.03926148]
[1739632820939,5.1552,193.95,193.93,0.03926148]
[1739632821639,0.0385334,193.97,193.93,0.03926148]
[1739632821841,5.1554,193.94,193.93,0.03926148]
[1739632827643,9.19223491,193.97,193.93,0.03926148]
[1739632829034,5.1554,193.94,193.93,0.03926148]
[1739632842445,6.6862,193.94,193.93,6.148e-05]
[1739632846353,5.1573,193.87,193.83,5.1583]
[1739632847155,9.15370151,193.88,193.82,9.15370151]
[1739632847354,14.31150151,193.86,193.83,0.03764696]
[1739632849159,5.1579,193.85,193.83,0.03764696]
[1739632849359,9.15370151,193.86,193.83,0.03764696]
[1739632849554,0.03693326,193.87,193.83,0.03764696]
[1739632850862,5.1581,193.84,193.83,0.03764696]
[1739632852055,9.15370151,193.86,193.83,0.03764696]
[1739632852261,5.1579,193.85,193.83,0.03764696]
[1739632852759,5.1581,193.84,193.83,0.03764696]
[1739632853357,14.31180151,193.84,193.83,0.03764696]
[1739632862770,14.31180151,193.84,193.83,4.696e-05]
[1739632879383,200.15370151,193.86,193.83,4.696e-05]
[1739632880081,0.03693326,193.87,193.83,4.696e-05]
[1739632881991,5.1576,193.86,193.83,4.696e-05]
[1739632882883,9.15370151,193.86,193.83,4.696e-05]
[1739632883483,5.1581,193.84,193.83,4.696e-05]
[1739632885090,14.31180151,193.84,193.83,4.696e-05]
[1739632891499,0.03693326,193.87,193.83,4.696e-05]
[1739632891999,5.1576,193.86,193.83,4.696e-05]
[1739632893101,0.03693326,193.87,193.83,4.696e-05]
[1739632893295,0.03693326,193.87,193.85,5.1577]
[1739632894395,0.03693326,193.87,193.84,9.15370151]
[1739632894598,9.15370151,193.9,193.84,9.15370151]
[1739632895092,77.99926264,193.92,193.86,9.15370151]
[1739632895298,72.84316264,193.92,193.86,9.15370151]
[1739632895495,72.84316264,193.92,193.87,1.6146]
[1739632895694,0.03654865,193.91,193.88,0.03570774]
[1739632896995,5.1567,193.89,193.88,0.03570774]
[1739632897994,5.1567,193.89,193.88,7.74e-06]
[1739632898201,9.15370151,193.89,193.81,1.5565]
[1739632898403,9.15370151,193.84,193.81,1.5565]
[1739632899290,9.1911099,193.84,193.81,1.59453307]
[1739632901897,14.3492099,193.84,193.81,1.59453307]
[1739632903605,9.1911099,193.84,193.81,1.59453307]
[1739632904105,0.03740839,193.84,193.81,1.59453307]
[1739632904896,5.19550839,193.84,193.81,1.59453307]
[1739632905504,0.03740839,193.84,193.81,1.59453307]
[1739632905705,0.03740839,193.84,193.81,6.75343307]
[1739632905905,0.03740839,193.84,193.81,1.59453307]
[1739632906107,9.1911099,193.84,193.81,0.03803307]
[1739632906308,5.1586,193.83,193.81,0.03803307]
[1739632907008,14.3492099,193.84,193.81,0.03803307]
[1739632907308,9.1911099,193.84,193.81,0.03803307]
[1739632907503,5.1586,193.83,193.81,0.03803307]
[1739632908004,9.1911099,193.84,193.81,0.03803307]
[1739632909104,5.1583,193.83,193.81,0.03803307]
[1739632909300,9.1911099,193.84,193.81,0.03803307]
[1739632910011,5.1586,193.83,193.81,0.03803307]
[1739632910410,14.31230151,193.82,193.81,0.03803307]
[1739632916013,14.31230151,193.82,193.81,3.307e-05]
[1739632921920,5.1607,193.75,193.7,9.15370151]
[1739632922616,5.161,193.73,193.7,9.15370151]
[1739632923227,5.19375465,193.73,193.7,9.15370151]
[1739632923722,5.19375465,193.73,193.68,17.44170151]
[1739632924320,0.03275465,193.73,193.68,12.27940151]
[1739632924921,5.1615,193.72,193.68,10.74160151]
[1739632925217,0.03275465,193.73,193.68,10.74160151]
[1739632925914,5.1616,193.71,193.68,10.74160151]
[1739632926113,0.03275465,193.73,193.68,10.74160151]
[1739632926624,5.19385465,193.73,193.68,15.90390151]
[1739632927526,5.1613,193.72,193.68,15.90390151]
[1739632927922,0.03275465,193.73,193.69,5.162]
[1739632931835,5.19385465,193.73,193.69,5.162]
[1739632932929,5.19385465,193.73,193.7,5.1618]
[1739632933333,5.19385465,193.73,193.68,10.74160151]
[1739632933627,0.03275465,193.73,193.68,10.74160151]
[1739632934228,0.03275465,193.73,193.68,15.90370151]
[1739632935136,5.1615,193.71,193.68,15.90370151]
[1739632936338,5.1615,193.71,193.68,10.74160151]
[1739632937038,5.1615,193.71,193.68,1.5879]
[1739632937233,5.1619,193.7,193.66,14.31650151]
[1739632937434,9.15370151,193.72,193.66,14.31650151]
[1739632937634,9.15370151,193.7,193.64,9.15370151]
[1739632938035,0.03264829,193.69,193.64,9.15370151]
[1739632938233,5.1623,193.68,193.65,5.1631]
[1739632938432,5.1623,193.68,193.64,9.15370151]
[1739632938833,0.03264829,193.69,193.64,9.15370151]
[1739632939035,5.19474829,193.69,193.65,5.1631]
[1739632941038,0.03264829,193.69,193.66,5.1628]
[1739632941530,0.03264829,193.69,193.64,9.15370151]
[1739632941928,0.03264829,193.69,193.65,5.1629]
[1739632941929,5.19474829,193.69,193.65,5.1629]
[1739632943942,5.1626,193.68,193.64,14.31700151]
[1739632945941,5.1626,193.68,193.64,9.15370151]
[1739632946143,5.1626,193.67,193.64,9.15370151]
[1739632947743,5.19474829,193.69,193.65,5.1631]
[1739632948143,0.03264829,193.69,193.64,9.15370151]
[1739632948643,5.19474829,193.69,193.64,9.15370151]
[1739632950043,5.19474829,193.69,193.65,5.163]
[1739632950443,0.03264829,193.69,193.64,9.15370151]
[1739632950741,0.03264829,193.69,193.65,5.1631]
[1739632951144,0.03264829,193.69,193.66,5.1628]
[1739632951643,0.03264829,193.69,193.64,9.15370151]
[1739632951945,0.03264829,193.69,193.67,5.1625]
[1739632952436,0.03264829,193.69,193.68,5.1623]
[1739632952643,9.15370151,193.76,193.68,9.15370151]
[1739632952842,5.161,193.74,193.68,9.15370151]
[1739632953149,9.15370151,193.74,193.68,14.31580151]
[1739632953443,14.31470151,193.74,193.68,14.31580151]
[1739632953644,9.15370151,193.74,193.68,14.31580151]
[1739632953846,0.0366029,193.73,193.69,0.03519835]
[1739632954739,9.15370151,193.7,193.69,0.03519835]
[1739632955046,9.15370151,193.72,193.69,0.03519835]
[1739632955245,5.1976029,193.73,193.69,0.03519835]
[1739632956139,0.0366029,193.73,193.69,0.03519835]
[1739632956345,0.0366029,193.73,193.7,9.15370151]
[1739632956740,0.0366029,193.73,193.72,9.15370151]
[1739632956945,191.0,193.78,193.72,9.15370151]
[1739632957144,9.15370151,193.8,193.74,9.15370151]
[1739632957645,5.1597,193.78,193.74,14.31440151]
[1739632957946,5.1597,193.78,193.74,5.1607]
[1739632958143,9.15370151,193.8,193.74,5.1607]
[1739632958443,0.03878459,193.78,193.74,5.20006034]
[1739632958838,0.03878459,193.78,193.75,5.1603]
[1739632960142,9.1924861,193.78,193.75,5.1603]
[1739632960850,9.1924861,193.78,193.74,0.03936034]
[1739632961051,9.1924861,193.78,193.76,5.1602]
[1739632961642,0.03878459,193.78,193.77,5.1599]
[1739632965049,0.03878459,193.78,193.76,14.31390151]
[1739632965352,0.03878459,193.78,193.76,9.15370151]
[1739632965747,0.03878459,193.78,193.77,5.1599]
[1739632965956,0.03878459,193.78,193.76,9.15370151]
[1739632967351,5.19858459,193.78,193.74,9.19306185]
[1739632967551,14.3522861,193.78,193.74,0.03936034]
[1739632968557,14.3522861,193.78,193.74,5.20006034]
[1739632969351,5.16,193.77,193.74,0.03936034]
[1739632970856,0.03878459,193.78,193.74,9.19306185]
[1739632971356,0.03878459,193.78,193.75,5.1603]
[1739632971553,0.03878459,193.78,193.74,9.19306185]
[1739632972154,0.03878459,193.78,193.76,5.16]
[1739632972358,0.03878459,193.78,193.74,9.19306185]
[1739632973153,0.03878459,193.78,193.75,5.1602]
[1739632973756,0.03878459,193.78,193.74,9.19306185]
[1739632973958,0.03878459,193.78,193.76,5.1602]
[1739632974157,0.03878459,193.78,193.74,9.19306185]
[1739632974353,0.03878459,193.78,193.75,5.1604]
[1739632974558,0.03878459,193.78,193.74,9.19306185]
[1739632974955,0.03878459,193.78,193.76,5.1602]
[1739632975453,0.03878459,193.78,193.74,9.19306185]
[1739632975659,0.03878459,193.78,193.77,5.1599]
[1739632976660,0.03878459,193.78,193.74,9.19306185]
[1739632976860,0.03878459,193.78,193.76,5.16]
[1739632979062,0.03878459,193.78,193.77,5.1599]
[1739632981561,0.03878459,193.78,193.76,5.1601]
[1739632982163,0.03878459,193.78,193.74,9.19306185]
[1739632982365,0.03878459,193.78,193.75,5.1603]
[1739632983558,5.19848459,193.78,193.74,14.35376185]
[1739632984561,5.19848459,193.78,193.74,9.19306185]
[1739632985466,0.03878459,193.78,193.74,9.19306185]
[1739632986062,0.03878459,193.78,193.76,5.1602]
[1739632986566,0.03878459,193.78,193.77,5.1599]
[1739632989175,0.03878459,193.78,193.77,12.54201997]
[1739632990060,5.19848459,193.78,193.77,12.54201997]
[1739632991073,0.03878459,193.78,193.77,12.54201997]
[1739632991268,0.03878459,193.78,193.74,7.19880271]
[1739632991661,5.19848459,193.78,193.74,12.35950271]
[1739632992472,5.16,193.77,193.74,7.19880271]
[1739632992866,0.03878459,193.78,193.74,7.19880271]
[1739632994174,5.19848459,193.78,193.76,7.15944237]
[1739632995674,0.03878459,193.78,193.76,16.31314388]
[1739632996272,0.03878459,193.78,193.77,5.39369779]
[1739632998072,4.0344861,193.82,193.77,5.39369779]
[1739632998879,5.1589,193.81,193.77,10.55359779]
[1739632999276,5.19475923,193.81,193.77,5.1599]
[1739633002482,5.19475923,193.81,193.79,7.15944237]
[1739633002881,5.1591,193.8,193.79,7.15944237]
[1739633003980,5.1591,193.8,193.79,5.91230499]
[1739633004179,14.31280151,193.8,193.79,5.91230499]
[1739633005182,9.15370151,193.8,193.77,21.41124804]
[1739633005484,9.15370151,193.78,193.75,57.17628536]
[1739633005786,9.15370151,193.76,193.75,29.54078536]
[1739633005981,14.31390151,193.76,193.75,29.54078536]
[1739633006888,5.1605,193.75,193.74,0.03350396]
[1739633011987,9.15370151,193.7,193.66,1.6534]
[1739633012982,9.18698892,193.7,193.66,0.03409775]
[1739633013390,14.34878892,193.7,193.66,0.03409775]
[1739633013590,9.18698892,193.7,193.66,0.03409775]
[1739633016293,9.18698892,193.7,193.66,5.19689775]
[1739633017495,0.03328741,193.7,193.66,0.03409775]
[1739633017694,0.03328741,193.7,193.69,5.1621]
[1739633018491,9.15370151,193.74,193.68,9.15370151]
[1739633018994,9.15370151,193.74,193.7,5.1616]
[1739633019394,9.15370151,193.74,193.68,9.15370151]
[1739633019592,9.15370151,193.72,193.66,9.15370151]
[1739633019895,9.15370151,193.72,193.69,0.03517909]
[1739633020086,0.03906293,193.73,193.69,0.03517909]
[1739633021988,0.03906293,193.73,193.7,5.1618]
[1739633022389,0.03906293,193.73,193.69,5.19717909]
[1739633023997,5.20016293,193.73,193.69,5.19717909]
[1739633024199,5.20016293,193.73,193.69,0.03517909]
[1739633024396,0.03906293,193.73,193.69,0.03517909]
[1739633024597,5.1613,193.72,193.69,0.03517909]
[1739633026102,5.1616,193.71,193.69,0.03517909]
[1739633026601,0.03906293,193.73,193.69,0.03517909]
[1739633026896,5.1618,193.7,193.69,0.03517909]
[1739633039914,5.1616,193.71,193.69,0.03517909]
[1739633040506,9.15370151,193.72,193.69,0.03517909]
[1739633040810,9.15370151,193.7,193.61,3.2786]
[1739633041011,9.15370151,193.64,193.58,30.86664033]
[1739633041207,9.15370151,193.7,193.62,9.15370151]
[1739633041411,9.15370151,193.72,193.66,9.15370151]
[1739633042016,0.03835518,193.71,193.67,0.03472279]
[1739633043815,5.20015518,193.71,193.67,0.03472279]
[1739633044009,0.03835518,193.71,193.67,0.03472279]
[1739633044412,9.15370151,193.7,193.67,0.03472279]
[1739633044907,5.1623,193.68,193.67,0.03472279]
[1739633045510,14.31600151,193.68,193.67,0.03472279]
[1739633049322,14.31600151,193.68,193.67,2.279e-05]
[1739633049518,5.1641,193.62,193.59,21.50722499]
[1739633049814,9.15370151,193.63,193.59,21.50722499]
[1739633050319,9.15370151,193.61,193.59,21.50722499]
[1739633051816,9.15370151,193.61,193.57,85.76442804]
[1739633052120,5.1647,193.6,193.56,3.1706]
[1739633052618,5.1647,193.6,193.56,1.5544]
[1739633052821,9.15370151,193.59,193.56,1.5544]
[1739633053712,0.03909908,193.62,193.56,1.5544]
[1739633054020,9.15370151,193.61,193.56,1.5544]
[1739633054319,0.03909908,193.62,193.56,10.70810151]
[1739633054818,0.03909908,193.62,193.56,15.87340151]
[1739633055315,0.03909908,193.62,193.58,9.15370151]
[1739633055718,0.03909908,193.62,193.56,10.70810151]
[1739633056516,0.03909908,193.62,193.56,15.87340151]
[1739633056718,0.03909908,193.62,193.56,10.70810151]
[1739633057019,0.03909908,193.62,193.57,5.165]
[1739633058618,0.03909908,193.62,193.58,5.1649]
[1739633059523,0.03909908,193.62,193.56,10.70810151]
[1739633059723,0.03909908,193.62,193.59,5.1647]
[1739633060021,0.03909908,193.62,193.58,9.15370151]